[Event "RUS-ch Rapid 2021"]
[Site "Sochi"]
[Date "2021.10.13"]
[Round "6.16"]
[White "Faizrakhmanov, Ramil"]
[Black "Kokarev, Dmitry"]
[Result "1/2-1/2"]
[ECO "E90"]
[WhiteElo "2483"]
[BlackElo "2579"]
[Annotator "RC"]
[PlyCount "51"]
[EventDate "2021.10.12"]
[EventType "swiss"]
[EventCountry "RUS"]
[SourceTitle "playchess.com"]
[Source "ChessBase"]
[SourceQuality "1"]
[TimeControl "900+10"]

1. d4 {[%emt 0:00:00]} Nf6 {[%emt 0:00:04]} 2. c4 {[%emt 0:00:11]} g6 {[%emt 0:
00:02]} 3. Nc3 {[%emt 0:00:02]} Bg7 {[%emt 0:00:04]} 4. e4 {[%emt 0:00:00]} d6
{[%emt 0:00:00]} 5. h3 {[%emt 0:00:00]} O-O {[%emt 0:00:06]} 6. Be3 {[%emt 0:
00:00]} c5 {[%emt 0:00:01]} 7. d5 {[%emt 0:00:01]} e6 {[%emt 0:00:06]} 8. Bd3 {
[%emt 0:00:04]} exd5 {[%emt 0:00:14]} 9. exd5 {[%emt 0:00:03]} Na6 {[%emt 0:00:
10]} 10. Nf3 {[%emt 0:00:14]} Nb4 {[%emt 0:00:02]} 11. Be2 {[%emt 0:00:09]} Bf5
{[%emt 0:00:25]} 12. Rc1 {[%emt 0:00:04]} Re8 {[%emt 0:00:00]} 13. a3 {[%emt 0:
00:10]} Na6 {[%emt 0:00:01]} 14. Bd3 {[%emt 0:00:06]} Ne4 {[%emt 0:00:26]} 15.
Nxe4 {[%emt 0:01:04]} Bxe4 {[%emt 0:00:05]} 16. Bxe4 {[%emt 0:00:17]} Rxe4 {
[%emt 0:00:02]} 17. Qc2 {[%emt 0:00:13]} Re8 {[%emt 0:00:03]} 18. O-O {[%emt 0:
00:13]} Qd7 {[%emt 0:00:15]} 19. Bf4 {[%emt 0:01:03]} b5 {[%emt 0:00:25]} 20.
cxb5 {[%emt 0:01:00]} Nc7 {[%emt 0:00:50]} 21. a4 {[%emt 0:01:11]} a6 {[%emt 0:
00:39]} 22. bxa6 {[%emt 0:00:49]} Nxd5 {[%emt 0:00:32]} 23. Bh2 {[%emt 0:00:00]
} Rxa6 {[%emt 0:00:04]} 24. Rfd1 {[%emt 0:00:30]} Nb4 {[%emt 0:01:46]} 25. Qxc5
{[%emt 0:02:09]} dxc5 {[%emt 0:00:01]} 26. Rxd7 {[%emt 0:09:47]} 1/2-1/2

[Event "RUS-ch Rapid 2021"]
[Site "Sochi"]
[Date "2021.10.13"]
[Round "6.17"]
[White "Afanasiev, Nikita"]
[Black "Nazaretyan, Tigran"]
[Result "1-0"]
[ECO "B62"]
[WhiteElo "2560"]
[BlackElo "2316"]
[Annotator "RC"]
[PlyCount "83"]
[EventDate "2021.10.12"]
[EventType "swiss"]
[EventCountry "RUS"]
[SourceTitle "playchess.com"]
[Source "ChessBase"]
[SourceQuality "1"]
[TimeControl "900+10"]

1. e4 {[%emt 0:00:05]} c5 {[%emt 0:00:06]} 2. Nf3 {[%emt 0:00:00]} Nc6 {
[%emt 0:00:16]} 3. d4 {[%emt 0:00:04]} cxd4 {[%emt 0:00:05]} 4. Nxd4 {[%emt 0:
00:04]} Nf6 {[%emt 0:00:00]} 5. Nc3 {[%emt 0:00:00]} d6 {[%emt 0:00:06]} 6. Bg5
{[%emt 0:00:06]} e6 {[%emt 0:00:03]} 7. Qd3 {[%emt 0:00:00]} a6 {[%emt 0:00:13]
} 8. O-O-O {[%emt 0:00:26]} Bd7 {[%emt 0:00:25]} 9. f4 {[%emt 0:00:26]} h6 {
[%emt 0:00:21]} 10. Bh4 {[%emt 0:00:17]} g5 {[%emt 0:00:21]} 11. fxg5 {[%emt 0:
00:32]} Ng4 {[%emt 0:00:05]} 12. Nf3 {[%emt 0:00:37]} Be7 {[%emt 0:01:57]} 13.
Be2 {[%emt 0:01:38]} hxg5 {[%emt 0:00:57]} 14. Bg3 {[%emt 0:00:02]} Qb6 {
[%emt 0:00:47]} 15. Kb1 {[%emt 0:02:37]} Nf2 {[%emt 0:05:05]} 16. Bxf2 {
[%emt 0:00:07]} Qxf2 {[%emt 0:00:00]} 17. e5 {[%emt 0:00:02]} d5 {[%emt 0:00:
36]} 18. Ne4 {[%emt 0:00:54]} Qxg2 {[%emt 0:02:14]} 19. Rhg1 {[%emt 0:02:43]}
Qh3 {[%emt 0:00:22]} 20. Nexg5 {[%emt 0:00:04]} Qh6 {[%emt 0:00:23]} 21. Rdf1 {
[%emt 0:00:52]} Rf8 {[%emt 0:01:28]} 22. Qh7 {[%emt 0:02:02]} Qxh7 {[%emt 0:00:
29]} 23. Nxh7 {[%emt 0:00:00]} Rh8 {[%emt 0:00:03]} 24. Nf6+ {[%emt 0:00:08]}
Bxf6 {[%emt 0:01:30]} 25. exf6 {[%emt 0:00:00]} O-O-O {[%emt 0:00:27]} 26. Rg7
{[%emt 0:00:02]} Rdf8 {[%emt 0:00:10]} 27. h4 {[%emt 0:00:27]} Rh6 {[%emt 0:00:
09]} 28. Ng5 {[%emt 0:00:00]} Be8 {[%emt 0:00:35]} 29. h5 {[%emt 0:00:41]} Ne5
{[%emt 0:00:08]} 30. b3 {[%emt 0:03:02]} Nd7 {[%emt 0:00:07]} 31. Kb2 {[%emt 0:
00:37]} Rxf6 {[%emt 0:00:32]} 32. Rxf6 {[%emt 0:00:19]} Nxf6 {[%emt 0:00:00]}
33. h6 {[%emt 0:00:18]} Kd8 {[%emt 0:00:02]} 34. Bd3 {[%emt 0:00:15]} Ke7 {
[%emt 0:00:09]} 35. Bg6 {[%emt 0:00:07]} Kd6 {[%emt 0:00:29]} 36. Bxf7 {
[%emt 0:00:08]} Rh8 {[%emt 0:00:17]} 37. Bxe8 {[%emt 0:00:05]} Rxe8 {[%emt 0:
00:02]} 38. h7 {[%emt 0:00:06]} Nxh7 {[%emt 0:00:15]} 39. Rxh7 {[%emt 0:00:05]}
b5 {[%emt 0:00:01]} 40. Ra7 {[%emt 0:00:04]} Kc5 {[%emt 0:00:14]} 41. Rxa6 {
[%emt 0:00:08]} e5 {[%emt 0:00:04]} 42. Ne6+ {[%emt 0:00:00]} 1-0

[Event "RUS-ch Rapid 2021"]
[Site "Sochi"]
[Date "2021.10.13"]
[Round "6.18"]
[White "Khanin, Semen"]
[Black "Gochelashvili, David"]
[Result "1-0"]
[ECO "B27"]
[WhiteElo "2521"]
[BlackElo "2400"]
[Annotator "RC"]
[PlyCount "75"]
[EventDate "2021.10.12"]
[EventType "swiss"]
[EventCountry "RUS"]
[SourceTitle "playchess.com"]
[Source "ChessBase"]
[SourceQuality "1"]
[TimeControl "900+10"]

1. e4 {[%emt 0:00:00]} c5 {[%emt 0:01:38]} 2. Nf3 {[%emt 0:00:03]} g6 {[%emt 0:
00:05]} 3. d4 {[%emt 0:00:11]} cxd4 {[%emt 0:00:01]} 4. Qxd4 {[%emt 0:00:02]}
Nf6 {[%emt 0:00:01]} 5. Nc3 {[%emt 0:00:00]} Nc6 {[%emt 0:00:00]} 6. Qa4 {
[%emt 0:00:00]} d6 {[%emt 0:00:03]} 7. e5 {[%emt 0:00:03]} dxe5 {[%emt 0:00:00]
} 8. Nxe5 {[%emt 0:00:00]} Bd7 {[%emt 0:00:01]} 9. Nxd7 {[%emt 0:00:04]} Nxd7 {
[%emt 0:00:18]} 10. Be3 {[%emt 0:00:53]} Bg7 {[%emt 0:00:47]} 11. Rd1 {[%emt 0:
00:43]} a6 {[%emt 0:01:42]} 12. Be2 {[%emt 0:00:20]} Qa5 {[%emt 0:02:58]} 13.
Qxa5 {[%emt 0:00:47]} Nxa5 {[%emt 0:00:00]} 14. Nd5 {[%emt 0:00:26]} Rc8 {
[%emt 0:00:07]} 15. Nb6 {[%emt 0:01:37]} Rc7 {[%emt 0:01:15]} 16. c3 {[%emt 0:
01:37]} e6 {[%emt 0:00:33]} 17. O-O {[%emt 0:01:59]} Ne5 {[%emt 0:04:32]} 18.
Bd4 {[%emt 0:04:46]} O-O {[%emt 0:00:41]} 19. Bxe5 {[%emt 0:00:00]} Bxe5 {
[%emt 0:00:01]} 20. Nd7 {[%emt 0:00:00]} Bg7 {[%emt 0:02:04]} 21. Nxf8 {
[%emt 0:00:08]} Kxf8 {[%emt 0:00:06]} 22. Rd8+ {[%emt 0:00:13]} Ke7 {[%emt 0:
00:00]} 23. Rfd1 {[%emt 0:00:00]} Nc6 {[%emt 0:00:20]} 24. Ra8 {[%emt 0:01:00]}
f5 {[%emt 0:00:13]} 25. Bf3 {[%emt 0:00:44]} Ne5 {[%emt 0:00:00]} 26. Rdd8 {
[%emt 0:00:14]} Nc4 {[%emt 0:00:19]} 27. Rac8 {[%emt 0:00:38]} Rxc8 {[%emt 0:
00:27]} 28. Rxc8 {[%emt 0:00:00]} Nxb2 {[%emt 0:00:03]} 29. Rc7+ {[%emt 0:00:
00]} Kf8 {[%emt 0:00:02]} 30. Bxb7 {[%emt 0:00:12]} Nd1 {[%emt 0:00:03]} 31.
Bxa6 {[%emt 0:00:30]} Nxc3 {[%emt 0:00:00]} 32. Bc4 {[%emt 0:00:00]} Bd4 {
[%emt 0:00:32]} 33. Bxe6 {[%emt 0:00:16]} Ne4 {[%emt 0:00:00]} 34. Rc2 {
[%emt 0:00:35]} Ke7 {[%emt 0:00:10]} 35. Bg8 {[%emt 0:00:08]} h5 {[%emt 0:00:
03]} 36. a4 {[%emt 0:00:04]} Bb6 {[%emt 0:01:16]} 37. Bh7 {[%emt 0:00:04]} Kf7
{[%emt 0:00:09]} 38. Bxg6+ {[%emt 0:00:00]} 1-0

[Event "RUS-ch Rapid 2021"]
[Site "Sochi"]
[Date "2021.10.13"]
[Round "6.19"]
[White "Nozdrachev, Vladislav"]
[Black "Klukin, Kirill"]
[Result "1-0"]
[ECO "B31"]
[WhiteElo "2495"]
[BlackElo "2346"]
[Annotator "RC"]
[PlyCount "98"]
[EventDate "2021.10.12"]
[EventType "swiss"]
[EventCountry "RUS"]
[SourceTitle "playchess.com"]
[Source "ChessBase"]
[SourceQuality "1"]
[TimeControl "900+10"]

1. e4 {[%emt 0:00:00]} c5 {[%emt 0:00:04]} 2. Nf3 {[%emt 0:00:01]} Nc6 {
[%emt 0:00:00]} 3. Bb5 {[%emt 0:00:08]} g6 {[%emt 0:00:00]} 4. O-O {[%emt 0:00:
07]} Bg7 {[%emt 0:00:00]} 5. Re1 {[%emt 0:00:00]} Nf6 {[%emt 0:00:05]} 6. e5 {
[%emt 0:00:09]} Nd5 {[%emt 0:00:00]} 7. Nc3 {[%emt 0:00:00]} Nc7 {[%emt 0:00:
00]} 8. Bxc6 {[%emt 0:00:00]} dxc6 {[%emt 0:00:00]} 9. Ne4 {[%emt 0:00:00]} b6
{[%emt 0:00:00]} 10. Nf6+ {[%emt 0:00:06]} Kf8 {[%emt 0:00:05]} 11. Ne4 {
[%emt 0:00:10]} Bg4 {[%emt 0:00:49]} 12. h3 {[%emt 0:00:29]} Bxf3 {[%emt 0:00:
15]} 13. Qxf3 {[%emt 0:00:00]} Ne6 {[%emt 0:00:00]} 14. d3 {[%emt 0:01:59]} Qd5
{[%emt 0:00:04]} 15. Ng5 {[%emt 0:05:09]} Nxg5 {[%emt 0:04:27]} 16. Bxg5 {
[%emt 0:00:11]} Qxf3 {[%emt 0:00:45]} 17. gxf3 {[%emt 0:00:06]} h6 {[%emt 0:01:
24]} 18. Bd2 {[%emt 0:00:51]} Rd8 {[%emt 0:00:39]} 19. a4 {[%emt 0:01:01]} a5 {
[%emt 0:00:35]} 20. Ra3 {[%emt 0:00:12]} Ra8 {[%emt 0:03:25]} 21. Rb3 {[%emt 0:
00:34]} Ra6 {[%emt 0:00:02]} 22. Be3 {[%emt 0:01:23]} Ke8 {[%emt 0:01:14]} 23.
d4 {[%emt 0:00:32]} cxd4 {[%emt 0:01:35]} 24. Bxd4 {[%emt 0:00:00]} c5 {
[%emt 0:00:08]} 25. Bc3 {[%emt 0:00:15]} e6 {[%emt 0:01:32]} 26. Rd1 {[%emt 0:
00:00]} Bf8 {[%emt 0:00:43]} 27. Bd2 {[%emt 0:00:09]} Be7 {[%emt 0:00:18]} 28.
Be3 {[%emt 0:00:01]} g5 {[%emt 0:00:25]} 29. Kg2 {[%emt 0:00:06]} Rf8 {[%emt 0:
00:15]} 30. f4 {[%emt 0:00:32]} f6 {[%emt 0:00:14]} 31. exf6 {[%emt 0:00:32]}
Rxf6 {[%emt 0:00:00]} 32. fxg5 {[%emt 0:00:09]} hxg5 {[%emt 0:00:01]} 33. Bxg5
{[%emt 0:00:11]} Rf5 {[%emt 0:01:07]} 34. Bxe7 {[%emt 0:00:33]} Kxe7 {[%emt 0:
00:00]} 35. h4 {[%emt 0:00:00]} Rf4 {[%emt 0:00:07]} 36. h5 {[%emt 0:00:45]}
Rxa4 {[%emt 0:00:05]} 37. Rh1 {[%emt 0:00:07]} Rb4 {[%emt 0:00:16]} 38. h6 {
[%emt 0:00:07]} Rxb3 {[%emt 0:00:15]} 39. h7 {[%emt 0:00:04]} Ra8 {[%emt 0:00:
00]} 40. cxb3 {[%emt 0:00:00]} Rh8 {[%emt 0:00:03]} 41. Kf3 {[%emt 0:00:18]}
Kd6 {[%emt 0:00:48]} 42. Kf4 {[%emt 0:00:07]} b5 {[%emt 0:00:09]} 43. Kg5 {
[%emt 0:00:02]} c4 {[%emt 0:00:14]} 44. bxc4 {[%emt 0:00:00]} bxc4 {[%emt 0:00:
00]} 45. Kg6 {[%emt 0:00:04]} Ke5 {[%emt 0:00:22]} 46. Kg7 {[%emt 0:00:02]} Rb8
{[%emt 0:00:00]} 47. h8=Q {[%emt 0:00:06]} Rxh8 {[%emt 0:00:03]} 48. Rxh8 {
[%emt 0:00:00]} Ke4 {[%emt 0:00:06]} 49. Rh3 {[%emt 0:00:02]} Kd5 {[%emt 0:00:
00]} 1-0

[Event "RUS-ch Rapid 2021"]
[Site "Sochi"]
[Date "2021.10.13"]
[Round "6.20"]
[White "Gutenev, Alexander"]
[Black "Trushnikov, Sergey"]
[Result "1-0"]
[ECO "B06"]
[WhiteElo "2455"]
[BlackElo "2525"]
[Annotator "RC"]
[PlyCount "165"]
[EventDate "2021.10.12"]
[EventType "swiss"]
[EventCountry "RUS"]
[SourceTitle "playchess.com"]
[Source "ChessBase"]
[SourceQuality "1"]
[TimeControl "900+10"]

1. e4 {[%emt 0:00:11]} g6 {[%emt 0:00:00]} 2. d4 {[%emt 0:00:05]} Bg7 {[%emt 0:
00:18]} 3. Nf3 {[%emt 0:00:00]} d6 {[%emt 0:00:00]} 4. Be2 {[%emt 0:00:00]} Nc6
{[%emt 0:00:05]} 5. O-O {[%emt 0:00:11]} e5 {[%emt 0:00:25]} 6. dxe5 {[%emt 0:
00:05]} dxe5 {[%emt 0:00:00]} 7. Nc3 {[%emt 0:00:11]} Qxd1 {[%emt 0:00:48]} 8.
Rxd1 {[%emt 0:00:07]} Bg4 {[%emt 0:00:24]} 9. Nd5 {[%emt 0:02:53]} O-O-O {
[%emt 0:00:39]} 10. c3 {[%emt 0:00:00]} Nce7 {[%emt 0:00:53]} 11. Nxe7+ {
[%emt 0:04:25]} Nxe7 {[%emt 0:00:13]} 12. h3 {[%emt 0:00:32]} Rxd1+ {[%emt 0:
01:30]} 13. Bxd1 {[%emt 0:00:01]} Bxf3 {[%emt 0:00:15]} 14. Bxf3 {[%emt 0:00:
02]} h5 {[%emt 0:00:11]} 15. Be3 {[%emt 0:00:47]} Bh6 {[%emt 0:00:40]} 16. Bc5
{[%emt 0:00:01]} Nc6 {[%emt 0:00:55]} 17. Be2 {[%emt 0:00:12]} Bf8 {[%emt 0:00:
41]} 18. Be3 {[%emt 0:00:08]} Bh6 {[%emt 0:00:15]} 19. Bxh6 {[%emt 0:02:17]}
Rxh6 {[%emt 0:00:00]} 20. Bc4 {[%emt 0:00:00]} Nd8 {[%emt 0:02:59]} 21. Rd1 {
[%emt 0:00:00]} Rh8 {[%emt 0:00:32]} 22. Kf1 {[%emt 0:01:14]} Re8 {[%emt 0:00:
16]} 23. Rd3 {[%emt 0:00:20]} Re7 {[%emt 0:01:20]} 24. Ke2 {[%emt 0:01:23]} Ne6
{[%emt 0:02:25]} 25. Rf3 {[%emt 0:02:15]} Nd8 {[%emt 0:00:27]} 26. h4 {[%emt 0:
00:20]} Kd7 {[%emt 0:00:21]} 27. a4 {[%emt 0:00:19]} Ke8 {[%emt 0:00:24]} 28.
g3 {[%emt 0:00:04]} Rd7 {[%emt 0:00:12]} 29. a5 {[%emt 0:00:25]} Ke7 {[%emt 0:
00:09]} 30. b4 {[%emt 0:00:10]} Rd6 {[%emt 0:00:12]} 31. Bd5 {[%emt 0:00:23]}
c6 {[%emt 0:00:06]} 32. Bc4 {[%emt 0:00:00]} Ne6 {[%emt 0:00:07]} 33. Re3 {
[%emt 0:00:21]} Rd8 {[%emt 0:00:52]} 34. Ke1 {[%emt 0:00:00]} Rd7 {[%emt 0:00:
13]} 35. Re2 {[%emt 0:00:00]} Rd8 {[%emt 0:00:03]} 36. Rb2 {[%emt 0:00:07]} a6
{[%emt 0:00:08]} 37. Ke2 {[%emt 0:00:00]} Nc7 {[%emt 0:00:01]} 38. Rd2 {
[%emt 0:00:17]} Rxd2+ {[%emt 0:00:09]} 39. Kxd2 {[%emt 0:00:00]} Ne8 {[%emt 0:
00:05]} 40. Ke3 {[%emt 0:00:21]} Nd6 {[%emt 0:00:00]} 41. Be2 {[%emt 0:00:00]}
Nb5 {[%emt 0:00:09]} 42. Kd3 {[%emt 0:00:11]} Kf6 {[%emt 0:00:19]} 43. Bd1 {
[%emt 0:00:04]} Ke7 {[%emt 0:00:03]} 44. f4 {[%emt 0:00:09]} f6 {[%emt 0:01:27]
} 45. fxe5 {[%emt 0:00:24]} fxe5 {[%emt 0:00:02]} 46. g4 {[%emt 0:00:00]} hxg4
{[%emt 0:00:07]} 47. Bxg4 {[%emt 0:00:05]} Nd6 {[%emt 0:00:29]} 48. c4 {
[%emt 0:00:09]} Ne8 {[%emt 0:00:57]} 49. c5 {[%emt 0:00:46]} Kd8 {[%emt 0:00:
09]} 50. Ke3 {[%emt 0:00:31]} Nf6 {[%emt 0:00:13]} 51. Be6 {[%emt 0:00:06]} Nh5
{[%emt 0:00:03]} 52. Kf3 {[%emt 0:00:27]} Nf4 {[%emt 0:00:00]} 53. Bc4 {
[%emt 0:00:37]} Ke7 {[%emt 0:00:00]} 54. Bf1 {[%emt 0:00:06]} Ke6 {[%emt 0:00:
13]} 55. Kg3 {[%emt 0:00:13]} Kf6 {[%emt 0:00:04]} 56. Kg4 {[%emt 0:00:00]} Ne6
{[%emt 0:00:06]} 57. Bh3 {[%emt 0:00:24]} Nf4 {[%emt 0:00:08]} 58. Kg3 {
[%emt 0:00:15]} Nd3 {[%emt 0:00:34]} 59. Bc8 {[%emt 0:00:00]} Nxb4 {[%emt 0:00:
01]} 60. Bxb7 {[%emt 0:00:12]} Ke7 {[%emt 0:00:08]} 61. Kg4 {[%emt 0:00:00]}
Kf6 {[%emt 0:00:05]} 62. Kf3 {[%emt 0:00:21]} Ke7 {[%emt 0:00:00]} 63. Kg4 {
[%emt 0:00:09]} Kf6 {[%emt 0:00:12]} 64. Bc8 {[%emt 0:00:15]} Kf7 {[%emt 0:00:
20]} 65. Kg5 {[%emt 0:00:03]} Nd3 {[%emt 0:00:01]} 66. Bxa6 {[%emt 0:00:05]}
Nxc5 {[%emt 0:00:00]} 67. Bc4+ {[%emt 0:00:00]} Kg7 {[%emt 0:00:12]} 68. a6 {
[%emt 0:00:06]} Nxe4+ {[%emt 0:00:05]} 69. Kg4 {[%emt 0:00:01]} Nf6+ {[%emt 0:
00:00]} 70. Kf3 {[%emt 0:00:04]} Nd7 {[%emt 0:00:05]} 71. a7 {[%emt 0:00:29]}
Nb6 {[%emt 0:00:00]} 72. Bd3 {[%emt 0:00:09]} Kf6 {[%emt 0:00:05]} 73. Be4 {
[%emt 0:00:01]} c5 {[%emt 0:00:24]} 74. Kg4 {[%emt 0:00:05]} c4 {[%emt 0:00:06]
} 75. Kf3 {[%emt 0:00:07]} g5 {[%emt 0:00:46]} 76. h5 {[%emt 0:00:22]} Kg7 {
[%emt 0:00:02]} 77. Ke3 {[%emt 0:00:10]} g4 {[%emt 0:00:17]} 78. Kd2 {[%emt 0:
00:20]} Kh6 {[%emt 0:00:12]} 79. Kc3 {[%emt 0:00:02]} g3 {[%emt 0:00:09]} 80.
Kb4 {[%emt 0:00:05]} c3 {[%emt 0:00:35]} 81. Kxc3 {[%emt 0:00:09]} Kxh5 {
[%emt 0:00:02]} 82. Kb4 {[%emt 0:00:05]} Kg4 {[%emt 0:00:31]} 83. Kb5 {[%emt 0:
00:03]} 1-0

[Event "RUS-ch Rapid 2021"]
[Site "Sochi"]
[Date "2021.10.13"]
[Round "6.21"]
[White "Ivanov, Alexander Al."]
[Black "Savchenko, Boris"]
[Result "0-1"]
[ECO "B06"]
[WhiteElo "2400"]
[BlackElo "2535"]
[Annotator "RC"]
[PlyCount "96"]
[EventDate "2021.10.12"]
[EventType "swiss"]
[EventCountry "RUS"]
[SourceTitle "playchess.com"]
[Source "ChessBase"]
[SourceQuality "1"]
[TimeControl "900+10"]

1. e4 {[%emt 0:03:35]} g6 {[%emt 0:03:35]} 2. f4 {[%emt 0:00:42]} d5 {[%emt 0:
00:00]} 3. exd5 {[%emt 0:00:04]} Qxd5 {[%emt 0:00:26]} 4. Nc3 {[%emt 0:00:02]}
Qd6 {[%emt 0:00:08]} 5. d3 {[%emt 0:00:18]} Bg7 {[%emt 0:00:30]} 6. Nf3 {
[%emt 0:00:00]} Nh6 {[%emt 0:00:44]} 7. Ne4 {[%emt 0:00:07]} Qd5 {[%emt 0:00:
29]} 8. c3 {[%emt 0:00:14]} b6 {[%emt 0:00:32]} 9. Qb3 {[%emt 0:00:08]} Bb7 {
[%emt 0:00:03]} 10. Qxd5 {[%emt 0:00:04]} Bxd5 {[%emt 0:00:04]} 11. Be2 {
[%emt 0:00:06]} c5 {[%emt 0:00:02]} 12. O-O {[%emt 0:02:00]} Nc6 {[%emt 0:00:
11]} 13. Nf2 {[%emt 0:00:04]} O-O-O {[%emt 0:00:09]} 14. Ng5 {[%emt 0:00:13]}
f6 {[%emt 0:00:09]} 15. Nge4 {[%emt 0:00:09]} Nf7 {[%emt 0:00:06]} 16. Be3 {
[%emt 0:00:54]} f5 {[%emt 0:00:03]} 17. Nd2 {[%emt 0:00:10]} e5 {[%emt 0:01:26]
} 18. Bf3 {[%emt 0:00:29]} g5 {[%emt 0:00:35]} 19. Bxd5 {[%emt 0:00:11]} Rxd5 {
[%emt 0:00:00]} 20. g3 {[%emt 0:00:03]} gxf4 {[%emt 0:01:57]} 21. gxf4 {
[%emt 0:00:00]} Bh6 {[%emt 0:00:00]} 22. Nf3 {[%emt 0:00:20]} exf4 {[%emt 0:00:
17]} 23. Bd2 {[%emt 0:00:54]} Nfe5 {[%emt 0:00:06]} 24. Nxe5 {[%emt 0:00:00]}
Nxe5 {[%emt 0:00:00]} 25. Rad1 {[%emt 0:00:05]} Nf3+ {[%emt 0:00:24]} 26. Kh1 {
[%emt 0:00:03]} Nxd2 {[%emt 0:00:02]} 27. Rxd2 {[%emt 0:00:05]} f3 {[%emt 0:00:
00]} 28. Rdd1 {[%emt 0:00:00]} Rhd8 {[%emt 0:00:06]} 29. Rfe1 {[%emt 0:00:49]}
Kd7 {[%emt 0:00:30]} 30. c4 {[%emt 0:02:32]} Rd4 {[%emt 0:00:07]} 31. Re5 {
[%emt 0:00:00]} Rf8 {[%emt 0:00:08]} 32. Rde1 {[%emt 0:00:03]} Rf7 {[%emt 0:00:
27]} 33. Rd5+ {[%emt 0:00:35]} Rxd5 {[%emt 0:00:04]} 34. cxd5 {[%emt 0:00:10]}
Re7 {[%emt 0:00:32]} 35. Rxe7+ {[%emt 0:00:19]} Kxe7 {[%emt 0:00:04]} 36. Nd1 {
[%emt 0:00:11]} Kd6 {[%emt 0:00:04]} 37. Kg1 {[%emt 0:00:00]} Kxd5 {[%emt 0:00:
08]} 38. Kf2 {[%emt 0:00:00]} Kd4 {[%emt 0:00:03]} 39. Nc3 {[%emt 0:00:00]}
Kxd3 {[%emt 0:00:05]} 40. Nb5 {[%emt 0:00:05]} a5 {[%emt 0:00:13]} 41. b3 {
[%emt 0:00:16]} c4 {[%emt 0:00:05]} 42. bxc4 {[%emt 0:00:00]} Bf4 {[%emt 0:00:
10]} 43. h3 {[%emt 0:00:12]} Kxc4 {[%emt 0:00:01]} 44. Na7 {[%emt 0:00:05]} b5
{[%emt 0:00:37]} 45. Kxf3 {[%emt 0:00:00]} Bc7 {[%emt 0:00:01]} 46. Nc6 {
[%emt 0:00:16]} b4 {[%emt 0:00:07]} 47. Ne7 {[%emt 0:00:04]} f4 {[%emt 0:00:07]
} 48. h4 {[%emt 0:00:05]} a4 {[%emt 0:00:00]} 0-1

[Event "RUS-ch Rapid 2021"]
[Site "Sochi"]
[Date "2021.10.13"]
[Round "6.22"]
[White "Potapov, Pavel"]
[Black "Zakaryan, David"]
[Result "1/2-1/2"]
[ECO "C47"]
[WhiteElo "2481"]
[BlackElo "2283"]
[Annotator "RC"]
[PlyCount "79"]
[EventDate "2021.10.12"]
[EventType "swiss"]
[EventCountry "RUS"]
[SourceTitle "playchess.com"]
[Source "ChessBase"]
[SourceQuality "1"]
[TimeControl "900+10"]

1. e4 {[%emt 0:00:00]} e5 {[%emt 0:00:04]} 2. Nf3 {[%emt 0:00:02]} Nc6 {
[%emt 0:00:03]} 3. Nc3 {[%emt 0:00:11]} Nf6 {[%emt 0:00:00]} 4. d4 {[%emt 0:00:
03]} exd4 {[%emt 0:00:02]} 5. Nxd4 {[%emt 0:00:05]} Bb4 {[%emt 0:00:00]} 6.
Nxc6 {[%emt 0:00:03]} bxc6 {[%emt 0:00:00]} 7. Bd3 {[%emt 0:00:03]} d5 {
[%emt 0:00:11]} 8. exd5 {[%emt 0:00:03]} O-O {[%emt 0:00:00]} 9. O-O {[%emt 0:
00:06]} Bg4 {[%emt 0:00:00]} 10. Be2 {[%emt 0:02:37]} Bxe2 {[%emt 0:00:01]} 11.
Nxe2 {[%emt 0:00:06]} cxd5 {[%emt 0:00:00]} 12. Bg5 {[%emt 0:01:27]} h6 {
[%emt 0:07:15]} 13. Bxf6 {[%emt 0:01:11]} Qxf6 {[%emt 0:00:00]} 14. c3 {
[%emt 0:00:33]} Bd6 {[%emt 0:00:05]} 15. Qxd5 {[%emt 0:01:10]} Rab8 {[%emt 0:
00:02]} 16. Rab1 {[%emt 0:01:30]} Rfe8 {[%emt 0:00:03]} 17. Ng3 {[%emt 0:00:42]
} Rbd8 {[%emt 0:01:45]} 18. Qc4 {[%emt 0:02:04]} Qf4 {[%emt 0:00:54]} 19. Qxf4
{[%emt 0:01:03]} Bxf4 {[%emt 0:00:00]} 20. Rfd1 {[%emt 0:00:15]} Bxg3 {[%emt 0:
00:05]} 21. hxg3 {[%emt 0:00:08]} Rxd1+ {[%emt 0:00:06]} 22. Rxd1 {[%emt 0:00:
00]} Re2 {[%emt 0:00:00]} 23. Rd8+ {[%emt 0:00:29]} Kh7 {[%emt 0:00:00]} 24. b4
{[%emt 0:00:38]} Rxa2 {[%emt 0:05:57]} 25. Rc8 {[%emt 0:00:11]} a5 {[%emt 0:00:
10]} 26. Rxc7 {[%emt 0:02:32]} axb4 {[%emt 0:00:02]} 27. cxb4 {[%emt 0:00:00]}
Rb2 {[%emt 0:00:01]} 28. Rb7 {[%emt 0:00:01]} Rb1+ {[%emt 0:00:05]} 29. Kh2 {
[%emt 0:00:02]} f5 {[%emt 0:00:00]} 30. b5 {[%emt 0:01:18]} Kg6 {[%emt 0:00:01]
} 31. Rb8 {[%emt 0:00:05]} Kg5 {[%emt 0:00:07]} 32. b6 {[%emt 0:00:04]} Kg6 {
[%emt 0:00:41]} 33. Rb7 {[%emt 0:00:13]} Kf6 {[%emt 0:00:03]} 34. f3 {[%emt 0:
00:34]} Kg6 {[%emt 0:00:00]} 35. Rb8 {[%emt 0:00:17]} Kf6 {[%emt 0:00:10]} 36.
Rb7 {[%emt 0:00:16]} Kg6 {[%emt 0:00:00]} 37. g4 {[%emt 0:00:06]} fxg4 {
[%emt 0:00:07]} 38. fxg4 {[%emt 0:00:00]} Rb3 {[%emt 0:00:02]} 39. Kg1 {
[%emt 0:00:55]} Rb2 {[%emt 0:00:00]} 40. Kh2 {[%emt 0:00:07]} 1/2-1/2